bitfinex-derivatives/quotes_SOLF0:USTF0_20241010
["timestamp","ask_amount","ask_price","bid_price","bid_amount"]
[1728542784184,14.64222,140.33,140.29,14.5179]
[1728542784387,14.5176,140.31,140.28,6.3061]
[1728542784682,10.95,140.31,140.28,6.3061]
[1728542784894,14.5176,140.31,140.28,17.2561]
[1728542785185,14.5176,140.31,140.28,12.2961]
[1728542785575,14.5176,140.31,140.28,15.8644]
[1728542786480,10.95,140.31,140.28,15.8644]
[1728542787487,10.95,140.31,140.27,6.3283]
[1728542787890,10.95,140.31,140.27,17.2783]
[1728542788783,14.5177,140.31,140.27,20.8468]
[1728542790890,3.5679,140.3,140.27,17.2783]
[1728542792090,3.5679,140.3,140.27,12.3183]
[1728542792694,3.5679,140.3,140.27,1.3683]
[1728542796198,14.5179,140.3,140.27,1.3683]
[1728542799903,10.95,140.28,140.26,1.3165]
[1728542800097,14.5183,140.28,140.26,1.3165]
[1728542802399,14.5183,140.28,140.23,1.3352]
[1728542802595,14.5191,140.25,140.23,1.3352]
[1728542802802,14.5191,140.25,140.22,2.7525]
[1728542803500,10.95,140.25,140.22,2.7525]
[1728542803706,10.95,140.25,140.22,6.3224]
[1728542807601,14.5192,140.25,140.22,1.3957]
[1728542813016,10.95,140.25,140.21,5.06502]
[1728542813521,10.95,140.22,140.21,0.12502]
[1728542814229,14.5199,140.22,140.21,0.12502]
[1728542820224,4.96,140.26,140.21,0.12502]
[1728542820431,14.5195,140.24,140.21,0.12502]
[1728542820723,21.42,140.31,140.22,10.95]
[1728542820925,21.42,140.31,140.23,3.5694]
[1728542820926,14.5186,140.27,140.23,3.5694]
[1728542821826,14.5186,140.27,140.24,3.5692]
[1728542821827,10.95,140.27,140.24,3.5692]
[1728542823424,147.36332092,140.32,140.23,10.95]
[1728542823631,10.95,140.29,140.24,10.95]
[1728542825427,10.95,140.28,140.23,12.3876]
[1728542825627,10.95,140.27,140.23,12.3876]
[1728542826427,10.95,140.27,140.24,3.5691]
[1728542826725,14.5185,140.28,140.23,12.3876]
[1728542827433,14.5185,140.28,140.25,3.5689]
[1728542830735,10.95,140.26,140.23,1.4376]
[1728542830933,3.5691,140.25,140.23,1.4376]
[1728542831436,3.5694,140.24,140.21,5.06502]
[1728542831636,3.5694,140.24,140.21,0.12502]
[1728542831637,10.95,140.24,140.21,0.12502]
[1728542831826,10.95,140.22,140.21,0.12502]
[1728542834941,14.5198,140.22,140.21,0.12502]
[1728542836940,10.95,140.23,140.21,0.12502]
[1728542837442,14.5196,140.23,140.21,0.12502]
[1728542838641,10.95,140.23,140.21,0.12502]
[1728542839946,14.5194,140.24,140.21,0.12502]
[1728542840738,3.5693,140.24,140.21,3.69502]
[1728542840943,14.5193,140.24,140.21,3.69502]
[1728542847154,10.95,140.23,140.21,3.69502]
[1728542847553,10.95,140.23,140.21,0.12502]
[1728542847755,14.5196,140.23,140.21,0.12502]
[1728542848458,10.95,140.22,140.21,0.12502]
[1728542848658,14.5198,140.22,140.21,0.12502]
[1728542849942,3.5698,140.22,140.21,0.12502]
[1728542850149,14.5198,140.22,140.21,0.12502]
[1728542851256,3.5698,140.22,140.21,0.12502]
[1728542851459,14.5198,140.22,140.21,0.12502]
[1728542856247,3.61534116,140.24,140.21,0.12502]
[1728542856452,14.5197,140.23,140.21,0.12502]
[1728542860258,10.95,140.23,140.21,0.12502]
[1728542864967,14.5198,140.22,140.21,0.12502]
[1728542873163,3.5707,140.19,140.15,8.63642]
[1728542873362,10.95,140.18,140.15,8.63642]
[1728542874265,10.95,140.18,140.15,3.69642]
[1728542875668,3.5711,140.17,140.15,0.12502]
[1728542875866,10.95,140.18,140.15,0.12502]
[1728542877471,10.95,140.18,140.15,3.69642]
[1728542881687,14.5208,140.18,140.15,3.69642]
[1728542882785,10.95,140.23,140.17,10.95]
[1728542882986,10.95,140.23,140.19,10.95]
[1728542883191,14.5196,140.23,140.19,14.5203]
[1728542883502,10.95,140.23,140.19,10.95]
[1728542883878,14.5195,140.23,140.18,3.5706]
[1728542884080,10.95,140.2,140.17,4.96]
[1728542884690,14.5203,140.2,140.17,4.96]
[1728542885589,10.95,140.21,140.17,8.5309]
[1728542886094,3.5704,140.2,140.17,4.96]
[1728542890189,3.5704,140.2,140.16,7.6416]
[1728542890993,10.95,140.19,140.16,6.2848]
[1728542891294,10.95,140.18,140.15,5.06502]
[1728542892093,3.6358518,140.19,140.15,0.12502]
[1728542892094,10.95,140.17,140.15,0.12502]
[1728542893489,14.5208,140.18,140.15,0.12502]
[1728542895794,10.95,140.17,140.15,0.12502]
[1728542895986,10.95,140.16,140.15,0.12502]
[1728542905490,14.5211,140.16,140.15,0.12502]
[1728542905696,10.95,140.16,140.15,0.12502]
[1728542906596,3.5711,140.17,140.15,0.12502]
[1728542906796,14.5211,140.17,140.15,0.12502]
[1728542909908,10.95,140.16,140.15,0.12502]
[1728542910505,3.5706,140.18,140.15,0.12502]
[1728542910707,10.95,140.17,140.15,0.12502]
[1728542912504,14.5208,140.17,140.15,0.12502]
[1728542913408,3.5708,140.17,140.15,0.12502]
[1728542913607,10.95,140.17,140.15,0.12502]
[1728542914609,14.5208,140.17,140.15,0.12502]
[1728542914805,76.44572618,140.19,140.15,0.12502]
[1728542915005,10.95,140.17,140.15,0.12502]
[1728542921316,14.5208,140.17,140.15,0.12502]
[1728542923614,3.5708,140.17,140.15,0.12502]
[1728542924210,72.83042462,140.19,140.16,3.571]
[1728542924416,72.83042462,140.19,140.16,10.95]
[1728542925417,72.83042462,140.19,140.17,3.5706]
[1728542926119,14.5205,140.18,140.15,8.63632]
[1728542927328,10.95,140.18,140.15,8.63632]
[1728542928214,72.83042462,140.19,140.16,3.5709]
[1728542940129,14.5201,140.2,140.16,3.5709]
[1728542943732,10.95,140.19,140.16,3.5709]
[1728542944034,10.95,140.19,140.15,8.63622]
[1728542944626,3.5707,140.18,140.15,8.63622]
[1728542946632,3.571,140.17,140.15,5.06502]
[1728542946828,3.571,140.17,140.15,0.12502]
[1728542949231,3.571,140.16,140.15,0.12502]
[1728542954630,3.51184851,140.2,140.15,0.12502]
[1728542954831,10.95,140.19,140.16,3.5709]
[1728542955030,14.57163067,140.19,140.16,3.5709]
[1728542955736,10.95,140.19,140.16,3.5709]
[1728542956035,10.95,140.21,140.16,14.5209]
[1728542956536,3.5703,140.19,140.16,14.5209]
[1728542957535,14.5203,140.19,140.16,3.5709]
[1728542968043,3.5706,140.18,140.16,3.5709]
[1728542971449,14.5205,140.19,140.16,3.5709]
[1728542971941,3.5706,140.18,140.16,3.5709]
[1728542973446,3.5706,140.18,140.15,8.63622]
[1728542973835,3.5706,140.18,140.15,3.69622]
[1728542974038,3.5708,140.17,140.15,3.69622]
[1728542974238,3.5708,140.17,140.15,0.12502]
[1728542975047,102.35639333,140.22,140.15,0.12502]
[1728542975348,3.5707,140.18,140.15,3.69632]
[1728542987471,15.89,140.21,140.15,11.07502]
[1728542987677,3.5704,140.19,140.16,3.571]
[1728542989579,3.5704,140.19,140.15,14.64622]
[1728542989770,3.5702,140.2,140.15,14.64622]
[1728542989976,15.89,140.21,140.15,14.64622]
[1728542990472,3.5705,140.19,140.15,14.64622]
[1728543000982,10.95,140.18,140.15,0.12502]
[1728543001776,3.5709,140.17,140.15,0.12502]
[1728543021185,3.5707,140.18,140.15,0.12502]
[1728543021485,14.5207,140.18,140.15,0.12502]
[1728543023187,3.5707,140.18,140.15,0.12502]
[1728543025482,3.5707,140.18,140.15,3.69622]
[1728543031295,14.5204,140.19,140.15,3.69622]
[1728543036203,3.5705,140.18,140.15,3.69622]
[1728543038001,10.95,140.19,140.15,0.12502]
[1728543038302,10.95,140.17,140.15,0.12502]
[1728543039596,3.571,140.16,140.15,0.12502]
[1728543042904,26.38,140.21,140.15,11.07502]
[1728543043207,10.95,140.19,140.15,11.07502]
[1728543043713,3.5707,140.18,140.15,14.64622]
[1728543044602,3.5708,140.17,140.15,11.07502]
[1728543048213,10.95,140.19,140.15,11.07502]
[1728543048411,3.5707,140.18,140.15,14.64632]
[1728543049318,3.5707,140.18,140.16,10.95]
[1728543051407,3.5703,140.2,140.17,3.5707]
[1728543051820,3.5703,140.2,140.16,10.95]
[1728543052011,3.5703,140.2,140.16,14.5209]
[1728543052412,3.5703,140.19,140.16,14.5209]
[1728543056021,3.5703,140.19,140.16,3.5709]
[1728543062126,3.5703,140.19,140.15,16.01502]
[1728543062327,3.5703,140.19,140.15,19.58622]
[1728543071335,3.60270291,140.22,140.17,10.95]
[1728543071632,15.89,140.22,140.17,10.95]
[1728543071828,3.5702,140.2,140.17,10.95]
[1728543072426,3.5702,140.2,140.17,14.5208]
[1728543074432,3.5699,140.21,140.18,14.5205]
[1728543074639,75.04454263,140.22,140.2,10.95]
[1728543074838,75.04454263,140.22,140.21,10.95]
[1728543075142,37.45502,140.27,140.21,14.5196]
[1728543076629,3.569,140.25,140.21,14.5196]
[1728543077944,3.569,140.25,140.21,10.95]
[1728543078149,3.569,140.25,140.22,3.5695]
[1728543078331,16.01502,140.27,140.21,10.95]
[1728543078332,3.5686,140.26,140.21,10.95]
[1728543078844,3.5686,140.26,140.21,15.89]
[1728543079347,3.5686,140.26,140.23,3.5693]
[1728543079641,16.01502,140.27,140.21,4.94]
[1728543079832,3.569,140.25,140.22,3.5694]
[1728543081344,3.569,140.25,140.22,14.5194]
[1728543082346,3.5685,140.26,140.23,3.5692]
[1728543083548,14.64332,140.27,140.24,3.569]
[1728543083845,11.07502,140.27,140.22,10.95]
[1728543084642,3.5687,140.26,140.23,3.5692]
[1728543089452,3.5688,140.25,140.22,14.5195]
[1728543089855,11.07502,140.27,140.22,10.95]
[1728543090360,3.569,140.25,140.22,10.95]
[1728543091767,3.569,140.25,140.22,14.5195]
[1728543092059,3.5693,140.23,140.21,4.94]
[1728543092256,10.95,140.24,140.19,20.0187]
[1728543092957,10.95,140.24,140.19,15.0787]
[1728543093157,10.95,140.21,140.19,2.7987]
[1728543093359,15.89,140.25,140.19,2.7987]
[1728543093556,3.5692,140.24,140.21,3.5697]
[1728543093756,15.89,140.25,140.2,10.95]
[1728543095360,3.5694,140.23,140.2,14.5199]
[1728543096259,14.5194,140.23,140.2,3.5699]
[1728543096963,3.5696,140.22,140.19,17.319]
[1728543097358,10.95,140.23,140.19,2.7987]
[1728543097767,10.95,140.22,140.19,2.7987]
[1728543097966,3.57,140.21,140.19,2.7987]
[1728543099871,10.95,140.23,140.19,2.7987]
[1728543100169,3.5696,140.22,140.19,2.7987]
[1728543102566,3.5698,140.21,140.19,2.7987]
[1728543105376,3.5696,140.22,140.19,6.369]
[1728543106271,3.5696,140.22,140.19,2.7987]
[1728543106869,10.95,140.23,140.19,2.7987]
[1728543107068,3.5694,140.23,140.19,13.7487]
[1728543107772,3.5689,140.25,140.22,10.95]
[1728543109774,3.5689,140.25,140.22,14.5195]
[1728543111975,10.95,140.26,140.22,10.95]
[1728543112473,3.5689,140.25,140.22,14.5194]
[1728543117979,10.95,140.25,140.2,15.89]
[1728543118186,3.569,140.24,140.21,3.5697]
[1728543127091,3.569,140.24,140.2,19.4599]
[1728543133601,3.569,140.24,140.21,3.5698]
[1728543134497,3.5688,140.25,140.22,3.5695]
[1728543134997,3.69342,140.27,140.24,10.95]
[1728543135695,3.69342,140.27,140.24,14.519]
[1728543136194,0.12502,140.27,140.24,10.95]
[1728543136497,0.12502,140.27,140.26,10.95]
[1728543136697,0.12502,140.33,140.26,15.89]
[1728543136899,7.2019804,140.32,140.29,10.95]
[1728543138197,3.5673,140.31,140.29,10.95]
[1728543140600,7.2020804,140.32,140.29,10.95]
[1728543140801,3.5671,140.32,140.29,10.95]
[1728543140995,3.5671,140.32,140.29,14.5177]
[1728543141202,3.5671,140.32,140.29,10.95]
[1728543141401,14.60052755,140.33,140.29,10.95]
[1728543141603,3.5672,140.31,140.28,3.5679]
[1728543141998,10.95,140.3,140.26,4.94]
[1728543142301,14.5177,140.3,140.26,8.5084]
[1728543142702,10.95,140.3,140.26,8.5084]
[1728543142906,3.5678,140.29,140.26,8.5084]
[1728543143997,3.5675,140.3,140.26,8.5084]
[1728543144198,10.95,140.31,140.27,3.5681]
[1728543144495,10.95,140.31,140.27,14.5181]
[1728543145403,3.5675,140.3,140.27,14.5181]
[1728543145603,10.95,140.31,140.27,14.5181]
[1728543145804,10.95,140.32,140.28,14.518]
[1728543146706,10.95,140.32,140.28,3.568]
[1728543147406,3.5674,140.31,140.28,3.568]
[1728543148306,3.5675,140.3,140.27,3.5682]
[1728543148807,3.568,140.28,140.26,4.94]
[1728543149008,10.95,140.3,140.26,4.94]
[1728543149401,3.5679,140.29,140.26,8.5085]
[1728543151809,3.5679,140.29,140.26,19.4585]
[1728543152809,10.95,140.31,140.27,10.95]
[1728543153012,3.5676,140.3,140.27,10.95]
[1728543153309,3.5676,140.3,140.27,14.5182]
[1728543161831,3.5676,140.3,140.27,3.5682]
[1728543163024,3.5676,140.3,140.26,19.4584]
[1728543166328,3.5676,140.3,140.27,3.5682]
[1728543171736,14.60052755,140.33,140.28,10.95]
[1728543171931,10.95,140.32,140.27,10.95]
[1728543173534,3.5674,140.31,140.27,14.5181]
[1728543180139,3.5674,140.31,140.27,10.95]
[1728543180444,3.5674,140.31,140.28,3.568]
[1728543183755,3.69182,140.33,140.3,3.5675]
[1728543184145,0.12502,140.33,140.31,10.95]
[1728543184346,0.12502,140.33,140.31,14.5171]
[1728543185540,0.12502,140.33,140.32,14.517]
[1728543186946,0.12502,140.33,140.32,19.457]
[1728543187150,78.54904679,140.36,140.32,19.457]
[1728543187350,78.54904679,140.36,140.33,14.5167]
[1728543187653,3.5658,140.37,140.33,10.95]
[1728543188655,3.5658,140.37,140.34,3.5664]
[1728543188853,3.566,140.36,140.33,10.95]
[1728543190453,3.566,140.36,140.33,3.5667]
[1728543190756,3.566,140.36,140.32,15.89]
[1728543191146,3.566,140.36,140.32,19.4569]
[1728543193355,3.566,140.36,140.33,4.94]
[1728543194856,10.95,140.37,140.32,10.95]
[1728543195051,3.5665,140.34,140.32,4.94]
[1728543195657,3.5667,140.33,140.32,4.94]
[1728543195856,10.95,140.35,140.32,4.94]
[1728543196457,3.5666,140.34,140.32,4.94]
[1728543196650,3.5666,140.34,140.31,14.5172]
[1728543196847,3.5666,140.34,140.31,19.4572]
[1728543199152,3.5669,140.33,140.31,15.89]
[1728543203769,10.95,140.36,140.31,15.89]
[1728543204459,3.5666,140.34,140.31,19.4572]
[1728543212263,3.5666,140.34,140.32,10.95]
[1728543212467,3.5663,140.35,140.32,14.5169]
[1728543212968,10.95,140.37,140.33,10.95]
[1728543213569,3.5661,140.36,140.33,14.5167]
[1728543213970,3.5661,140.36,140.33,3.5667]
[1728543217776,3.5655,140.38,140.35,14.516]
[1728543218072,11.07502,140.39,140.35,10.95]
[1728543218870,3.5657,140.38,140.35,10.95]
[1728543219073,10.95,140.38,140.34,15.89]
[1728543220375,3.5658,140.37,140.34,15.89]
[1728543221167,3.5658,140.37,140.34,19.4564]
[1728543228673,11.07502,140.39,140.34,15.89]
[1728543228879,3.566,140.36,140.34,15.89]
[1728543229976,3.5658,140.37,140.34,19.4565]
[1728543236083,3.5662,140.35,140.34,4.94]
[1728543236277,10.95,140.38,140.34,4.94]
[1728543236781,3.5661,140.36,140.34,4.94]
[1728543239786,10.95,140.37,140.3,4.1909]
[1728543240084,3.5666,140.34,140.31,19.4371]
[1728543243585,3.5666,140.34,140.32,10.95]
[1728543246789,3.5662,140.35,140.32,14.5169]
[1728543251497,3.5662,140.35,140.33,10.95]
[1728543252695,3.5658,140.37,140.34,14.5163]
[1728543252889,0.12502,140.39,140.36,10.95]
[1728543254495,3.5656,140.38,140.36,10.95]
[1728543259697,3.5656,140.38,140.35,14.5161]
[1728543266803,11.07502,140.39,140.35,14.5161]
[1728543267006,3.5657,140.37,140.34,19.4363]
[1728543268505,3.5656,140.38,140.35,14.5162]
[1728543271309,3.5656,140.38,140.34,4.92]
[1728543271510,0.12502,140.39,140.36,10.95]
[1728543272503,3.69042,140.39,140.36,10.95]
[1728543272709,3.69042,140.39,140.36,14.5159]
[1728543272905,3.69042,140.39,140.36,10.95]
[1728543273412,3.5655,140.38,140.36,10.95]
[1728543277413,3.5658,140.37,140.35,2.6955]
[1728543282818,3.5658,140.37,140.35,7.6155]
[1728543288826,3.5655,140.38,140.35,11.1817]
[1728543291219,3.5655,140.38,140.35,22.1317]
[1728543295113,3.5655,140.38,140.35,11.1817]
[1728543299526,3.566,140.36,140.35,2.6955]
[1728543299717,32.36,140.36,140.3,1.4172]
[1728543299921,10.95,140.34,140.3,1.4172]
[1728543300116,3.5669,140.33,140.3,1.4172]
[1728543300628,10.95,140.31,140.28,7.6387]
[1728543300825,3.5675,140.3,140.28,7.6387]
[1728543301015,10.95,140.31,140.28,7.6387]
[1728543301422,14.5174,140.31,140.28,7.6387]
[1728543303732,3.5674,140.31,140.28,7.6387]
[1728543305526,14.5171,140.32,140.28,11.2067]
[1728543307531,3.5672,140.31,140.28,11.2067]
[1728543311337,10.95,140.32,140.28,2.7187]
[1728543311531,10.95,140.31,140.27,5.04502]
[1728543312131,3.5676,140.3,140.27,5.04502]
[1728543313438,3.5676,140.3,140.27,19.56322]
[1728543314139,3.5674,140.31,140.28,3.568]
[1728543314444,3.5674,140.31,140.28,14.518]
[1728543316543,3.5674,140.31,140.28,3.568]
[1728543317546,14.60690484,140.32,140.27,15.99502]
[1728543317751,14.5176,140.3,140.27,8.61322]
[1728543322239,3.5676,140.3,140.27,19.56322]
[1728543322446,3.5674,140.31,140.28,3.568]
[1728543325046,14.5174,140.31,140.28,3.568]
[1728543328946,3.5674,140.31,140.28,3.568]
[1728543329148,14.5174,140.31,140.28,3.568]
[1728543332736,10.95,140.3,140.27,5.04502]
[1728543332944,14.5175,140.3,140.27,8.61322]
[1728543333346,74.99417928,140.32,140.27,5.04502]
[1728543333647,14.5173,140.31,140.28,3.568]
[1728543336154,3.5673,140.31,140.28,3.568]
[1728543338753,3.5675,140.3,140.27,8.61322]
[1728543338950,10.95,140.31,140.27,15.99502]
[1728543339353,14.5172,140.31,140.28,3.5678]
[1728543342450,24.91374303,140.41,140.29,10.95]
[1728543342658,3.5669,140.33,140.29,14.5176]
[1728543344253,3.5669,140.33,140.29,10.95]
[1728543344458,3.5669,140.33,140.3,3.5675]
[1728543351466,3.5669,140.33,140.3,8.4875]
[1728543359875,24.91374303,140.41,140.32,10.95]
[1728543360064,24.91374303,140.41,140.34,10.95]
[1728543360065,3.50374303,140.41,140.34,10.95]
[1728543360263,10.95,140.4,140.36,10.95]
[1728543360576,14.5148,140.41,140.37,14.5156]
[1728543360772,14.5148,140.41,140.37,19.4356]
[1728543362268,14.5148,140.41,140.37,15.87]
[1728543362475,21.9596,140.47,140.38,14.5155]
[1728543362670,14.48287462,140.44,140.38,14.5155]
[1728543363563,3.5643,140.43,140.38,14.5155]
[1728543364374,14.5143,140.43,140.38,14.5155]
[1728543364876,3.5644,140.42,140.38,14.5155]
[1728543365477,7.09697462,140.44,140.4,3.5649]
[1728543365781,3.5641,140.44,140.41,10.95]
[1728543366575,3.5641,140.44,140.4,4.92]
[1728543366576,0.12502,140.45,140.42,14.5143]
[1728543367674,0.12502,140.45,140.43,19.434]
[1728543369080,0.12502,140.45,140.43,4.92]
[1728543371775,0.12502,140.45,140.42,14.5144]
[1728543371972,11.07502,140.45,140.42,10.95]
[1728543372179,14.63882,140.45,140.43,4.92]
[1728543376181,10.95,140.44,140.41,2.7803]
[1728543376473,10.95,140.44,140.41,7.7803]
[1728543376872,3.5642,140.43,140.41,7.7803]
[1728543377073,10.95,140.43,140.34,1.3904]
[1728543377378,10.95,140.43,140.38,10.95]
[1728543377573,10.95,140.43,140.4,10.95]
[1728543378267,3.5643,140.43,140.4,10.95]
[1728543379282,3.5643,140.43,140.41,10.95]
[1728543383886,3.5643,140.43,140.4,3.5649]
[1728543384084,3.5648,140.41,140.39,5.0]
[1728543384380,3.5648,140.41,140.39,15.95]
[1728543384586,10.95,140.43,140.39,15.95]
[1728543384786,3.5645,140.42,140.39,15.95]
[1728543384983,3.5645,140.42,140.4,10.95]
[1728543386385,3.5643,140.43,140.4,10.95]
[1728543387483,3.5643,140.43,140.4,14.5149]
[1728543388682,3.5643,140.43,140.4,10.95]
[1728543388884,11.07502,140.45,140.4,10.95]
[1728543389977,3.5643,140.43,140.4,14.5148]
[1728543393391,3.5641,140.44,140.41,3.5646]
[1728543394390,0.12502,140.45,140.43,10.95]
[1728543395488,0.12502,140.45,140.43,14.514]
[1728543396296,0.12502,140.45,140.44,10.95]
[1728543398088,0.12502,140.45,140.44,14.5139]
[1728543398491,74.90873403,140.5,140.44,10.95]
[1728543398790,74.90873403,140.5,140.42,11.32011196]
[1728543398791,74.90873403,140.5,140.46,10.95]
[1728543399492,78.47133403,140.5,140.46,10.95]
[1728543399793,0.12502,140.51,140.45,5.0]
[1728543400096,0.12502,140.51,140.46,1.4089]
[1728543400398,0.12502,140.51,140.48,3.5628]
[1728543400600,0.12502,140.51,140.49,5.0]
[1728543401297,0.12502,140.51,140.49,15.95]
[1728543402198,0.12502,140.51,140.49,5.0]
[1728543402901,3.68742,140.51,140.49,5.0]
[1728543407204,0.12502,140.51,140.49,15.95]
[1728543407595,0.12502,140.51,140.49,19.5126]
[1728543407795,0.12502,140.51,140.49,15.95]
[1728543408404,0.12502,140.51,140.49,19.5127]
[1728543408601,0.12502,140.51,140.5,10.95]
[1728543408799,85.95417348,140.57,140.51,10.95]
[1728543409000,89.46621753,140.57,140.53,10.95]
[1728543409399,75.00417348,140.57,140.52,8.6017]
[1728543409600,85.95417348,140.57,140.52,15.99]
[1728543409997,3.5613,140.55,140.52,15.99]
[1728543412502,3.5613,140.55,140.53,10.95]
[1728543413904,3.5613,140.55,140.52,19.5519]
[1728543414205,3.5613,140.55,140.52,15.99]
[1728543419005,3.55189966,140.6,140.52,1.3852]
[1728543419204,10.95,140.6,140.56,10.95]
[1728543419410,10.95,140.6,140.55,10.95]
[1728543419607,14.53390381,140.6,140.55,10.95]
[1728543420215,3.5608,140.57,140.55,10.95]
[1728543423217,3.5608,140.57,140.54,3.5614]
[1728543423521,3.5608,140.57,140.54,14.5114]
[1728543423811,3.58390381,140.6,140.55,10.95]
[1728543424116,3.5606,140.58,140.55,10.95]
[1728543424511,3.5607,140.57,140.54,14.5114]
[1728543430117,3.5607,140.57,140.55,5.04]
[1728543432102,3.561,140.56,140.55,5.04]
[1728543432911,3.5607,140.57,140.55,5.04]
[1728543433116,3.57581382,140.59,140.55,5.04]
[1728543433316,10.95,140.59,140.55,5.04]
[1728543433519,3.5606,140.58,140.55,5.04]
[1728543434311,3.5607,140.57,140.55,5.04]
[1728543435208,14.44677064,140.59,140.55,5.04]
[1728543435415,3.5609,140.56,140.55,5.04]
[1728543435616,10.95,140.57,140.53,15.99]
[1728543436112,10.95,140.57,140.53,5.04]
[1728543436320,10.95,140.57,140.53,15.99]
[1728543436624,14.44677064,140.59,140.54,14.5114]
[1728543437118,3.5609,140.57,140.53,8.6016]
[1728543437625,3.5605,140.58,140.54,14.5112]
[1728543438321,3.561,140.56,140.53,19.5515]
[1728543438516,10.95,140.58,140.53,19.5515]
[1728543438920,3.5608,140.57,140.53,19.5515]
[1728543439719,3.5603,140.59,140.56,14.5108]
[1728543439916,3.5603,140.59,140.56,15.99]
[1728543440319,3.5604,140.58,140.56,15.99]
[1728543440821,3.5604,140.58,140.56,5.04]
[1728543441022,3.5606,140.57,140.56,5.04]
[1728543447929,3.5606,140.57,140.54,14.5113]
[1728543448120,3.5606,140.57,140.55,5.04]
[1728543448724,10.95,140.57,140.54,5.04]
[1728543449525,3.5611,140.56,140.54,5.04]
[1728543451332,3.5611,140.56,140.54,15.99]
[1728543451626,3.5611,140.56,140.54,10.95]
[1728543453033,3.5611,140.56,140.54,15.99]
[1728543453334,10.95,140.59,140.54,15.99]
[1728543453534,3.5607,140.57,140.55,10.95]
[1728543458736,3.5607,140.57,140.54,19.5514]
[1728543459139,3.5607,140.57,140.54,14.5114]
[1728543459339,3.5607,140.57,140.54,19.5514]
[1728543461635,3.5609,140.56,140.54,5.04]
[1728543462939,3.5609,140.56,140.54,15.99]
[1728543466041,3.5607,140.57,140.54,15.99]
[1728543469244,32.36,140.59,140.53,1.4204]
[1728543469441,10.95,140.56,140.52,6.3852]
[1728543469643,10.95,140.53,140.49,3.5625]
[1728543469958,3.5619,140.52,140.5,5.0]
[1728543471352,14.5119,140.52,140.49,10.95]
[1728543471546,14.5119,140.52,140.49,5.0]
[1728543476454,3.5618,140.53,140.49,8.5626]
[1728543476658,14.48021708,140.53,140.49,15.95]
[1728543477660,3.5619,140.52,140.49,15.95]
[1728543478963,14.5119,140.52,140.49,15.95]
[1728543479660,14.5119,140.52,140.48,4.0108]
[1728543479864,14.5119,140.52,140.51,1e-08]
[1728543481055,35.9219,140.52,140.51,1e-08]
[1728543491671,3.5619,140.52,140.51,1e-08]
[1728543491871,14.5119,140.52,140.51,1e-08]
[1728543492265,3.5619,140.52,140.51,1e-08]
[1728543492574,3.53021708,140.53,140.51,1e-08]
[1728543492575,10.95,140.53,140.51,1e-08]
[1728543492774,21.41,140.56,140.51,1e-08]
[1728543492976,10.95,140.54,140.51,1e-08]
[1728543493879,21.41,140.56,140.51,1e-08]